[Event "Titled Tuesday Blitz January 25 2022"]
[White "Fernandez, Michael"]
[Black "FGHSMN"]
[WhiteFideId "5803560"]
[WhiteElo "2110"]
[BlackElo "2727"]
[Result "0-1"]
[Round "01"]
[TimeControl "180+1"]
[Date "2022.01.26"]
[WhiteClock "0:00:04"]
[BlackClock "0:00:18"]

1. b4 {[%clk 0:03:00]}  e5 {[%clk 0:02:56]} 2. Bb2 {[%clk 0:03:01]}  Bxb4 {[%clk 0:02:56]} 3. Bxe5 {[%clk 0:03:01]}  Nf6 {[%clk 0:02:57]} 4. Nf3 {[%clk 0:03:01]}  Nc6 {[%clk 0:02:57]} 5. Bg3 {[%clk 0:03:00]}  d5 {[%clk 0:02:56]} 6. e3 {[%clk 0:03:00]}  O-O {[%clk 0:02:55]} 7. Bb5 {[%clk 0:03:01]}  Ne7 {[%clk 0:02:50]} 8. O-O {[%clk 0:02:59]}  Nf5 {[%clk 0:02:50]} 9. Be5 {[%clk 0:02:50]}  Bd6 {[%clk 0:02:47]} 10. d4 {[%clk 0:02:46]}  Ne4 {[%clk 0:02:26]} 11. Bd3 {[%clk 0:02:43]}  f6 {[%clk 0:02:22]} 12. Bxd6 {[%clk 0:02:41]}  Nfxd6 {[%clk 0:02:23]} 13. Nbd2 {[%clk 0:02:30]}  Bg4 {[%clk 0:02:14]} 14. Be2 {[%clk 0:02:11]}  Nc3 {[%clk 0:02:12]} 15. Qe1 {[%clk 0:02:12]}  Nxe2+ {[%clk 0:02:10]} 16. Qxe2 {[%clk 0:02:12]}  Ne4 {[%clk 0:02:09]} 17. Qd3 {[%clk 0:02:04]}  Bf5 {[%clk 0:02:00]} 18. Qb3 {[%clk 0:01:51]}  Rb8 {[%clk 0:01:58]} 19. Nxe4 {[%clk 0:01:49]}  Bxe4 {[%clk 0:01:57]} 20. Nd2 {[%clk 0:01:50]}  Bg6 {[%clk 0:01:56]} 21. c4 {[%clk 0:01:50]}  dxc4 {[%clk 0:01:55]} 22. Qxc4+ {[%clk 0:01:50]}  Bf7 {[%clk 0:01:55]} 23. Qc3 {[%clk 0:01:47]}  Qd7 {[%clk 0:01:52]} 24. Rfc1 {[%clk 0:01:46]}  c6 {[%clk 0:01:52]} 25. Ne4 {[%clk 0:01:47]}  Bd5 {[%clk 0:01:49]} 26. Ng3 {[%clk 0:01:46]}  Rfe8 {[%clk 0:01:47]} 27. Qd3 {[%clk 0:01:42]}  Qe6 {[%clk 0:01:47]} 28. a4 {[%clk 0:01:37]}  a5 {[%clk 0:01:40]} 29. Re1 {[%clk 0:01:28]}  f5 {[%clk 0:01:30]} 30. Qxf5 {[%clk 0:01:21]}  Qd6 {[%clk 0:01:28]} 31. Qg5 {[%clk 0:01:17]}  Kh8 {[%clk 0:01:17]} 32. e4 {[%clk 0:01:10]}  Be6 {[%clk 0:01:14]} 33. Rad1 {[%clk 0:01:08]}  Qb4 {[%clk 0:01:03]} 34. Nh5 {[%clk 0:00:58]}  Qe7 {[%clk 0:00:44]} 35. Qxa5 {[%clk 0:00:53]}  Ra8 {[%clk 0:00:38]} 36. Qe5 {[%clk 0:00:48]}  Bg4 {[%clk 0:00:37]} 37. Qxe7 {[%clk 0:00:34]}  Rxe7 {[%clk 0:00:34]} 38. Ng3 {[%clk 0:00:35]}  Bxd1 {[%clk 0:00:34]} 39. Rxd1 {[%clk 0:00:35]}  Rxa4 {[%clk 0:00:34]} 40. f4 {[%clk 0:00:34]}  Rd7 {[%clk 0:00:30]} 41. Ne2 {[%clk 0:00:33]}  c5 {[%clk 0:00:28]} 42. e5 {[%clk 0:00:22]}  cxd4 {[%clk 0:00:27]} 43. Nc3 {[%clk 0:00:19]}  Rc4 {[%clk 0:00:25]} 44. Ne4 {[%clk 0:00:19]}  d3 {[%clk 0:00:23]} 45. Nd6 {[%clk 0:00:18]}  Rxf4 {[%clk 0:00:21]} 46. Rxd3 {[%clk 0:00:18]}  Re7 {[%clk 0:00:20]} 47. Rc3 {[%clk 0:00:11]}  h6 {[%clk 0:00:20]} 48. Rc5 {[%clk 0:00:11]}  Kh7 {[%clk 0:00:20]} 49. g3 {[%clk 0:00:11]}  Rf8 {[%clk 0:00:18]} 50. Rb5 {[%clk 0:00:11]}  Rd8 {[%clk 0:00:18]} 51. Nxb7 {[%clk 0:00:11]}  Rd1+ {[%clk 0:00:17]} 52. Kg2 {[%clk 0:00:11]}  Rd2+ {[%clk 0:00:18]} 53. Kh3 {[%clk 0:00:11]}  Re2 {[%clk 0:00:18]} 54. Nd6 {[%clk 0:00:10]}  h5 {[%clk 0:00:18]} 55. Nc4 {[%clk 0:00:08]}  g5 {[%clk 0:00:17]} 56. Rb6 {[%clk 0:00:05]}  Rf7 {[%clk 0:00:16]} 57. Rf6 {[%clk 0:00:04]}  Rxf6 {[%clk 0:00:16]} 58. exf6 {[%clk 0:00:05]}  Kg6 {[%clk 0:00:17]} 59. Nd6 {[%clk 0:00:04]}  g4+ {[%clk 0:00:17]} 60. Kh4 {[%clk 0:00:04]}  Rxh2# {[%clk 0:00:18]} 0-1


[Site "https://www.chess.com"]

[Event "Titled Tuesday Blitz January 25 2022"]
[White "Howell, David W L"]
[Black "Rozhkov, Viacheslav"]
[WhiteFideId "410608"]
[BlackFideId "4181484"]
[WhiteElo "2559"]
[BlackElo "2324"]
[Result "1-0"]
[Round "01"]
[TimeControl "180+1"]
[Date "2022.01.26"]
[WhiteClock "0:00:14"]
[BlackClock "0:00:17"]

1. Nc3 {[%clk 0:02:56]}  d5 {[%clk 0:02:59]} 2. e3 {[%clk 0:02:55]}  e6 {[%clk 0:02:58]} 3. d4 {[%clk 0:02:44]}  f5 {[%clk 0:02:57]} 4. Bd3 {[%clk 0:02:43]}  Nf6 {[%clk 0:02:57]} 5. Nf3 {[%clk 0:02:42]}  Bd6 {[%clk 0:02:57]} 6. O-O {[%clk 0:02:42]}  O-O {[%clk 0:02:57]} 7. b3 {[%clk 0:02:42]}  Ne4 {[%clk 0:02:57]} 8. Nb5 {[%clk 0:02:40]}  a6 {[%clk 0:02:49]} 9. Nxd6 {[%clk 0:02:39]}  cxd6 {[%clk 0:02:49]} 10. c4 {[%clk 0:02:39]}  dxc4 {[%clk 0:02:47]} 11. bxc4 {[%clk 0:02:40]}  Nc6 {[%clk 0:02:42]} 12. Ba3 {[%clk 0:02:37]}  Rf6 {[%clk 0:02:27]} 13. Qc2 {[%clk 0:02:16]}  d5 {[%clk 0:01:53]} 14. Rab1 {[%clk 0:02:15]}  Rg6 {[%clk 0:01:41]} 15. Rfc1 {[%clk 0:02:11]}  Rb8 {[%clk 0:01:21]} 16. Qe2 {[%clk 0:01:56]}  Qa5 {[%clk 0:01:13]} 17. Rb3 {[%clk 0:01:51]}  Bd7 {[%clk 0:01:01]} 18. cxd5 {[%clk 0:01:29]}  exd5 {[%clk 0:01:01]} 19. Ne5 {[%clk 0:01:14]}  Nxe5 {[%clk 0:00:59]} 20. dxe5 {[%clk 0:01:15]}  Bc6 {[%clk 0:00:52]} 21. f3 {[%clk 0:01:06]}  Nd2 {[%clk 0:00:48]} 22. Rc5 {[%clk 0:00:39]}  Nxf3+ {[%clk 0:00:19]} 23. Qxf3 {[%clk 0:00:35]}  Qe1+ {[%clk 0:00:20]} 24. Bf1 {[%clk 0:00:32]}  d4 {[%clk 0:00:20]} 25. Rxc6 {[%clk 0:00:32]}  Rxc6 {[%clk 0:00:20]} 26. exd4 {[%clk 0:00:27]}  Qd2 {[%clk 0:00:20]} 27. Qd3 {[%clk 0:00:15]}  Qxd3 {[%clk 0:00:19]} 28. Bxd3 {[%clk 0:00:14]}  b5 {[%clk 0:00:19]} 29. Bxf5 {[%clk 0:00:14]}  Rd8 {[%clk 0:00:20]} 30. Bb2 {[%clk 0:00:13]}  g6 {[%clk 0:00:19]} 31. Be4 {[%clk 0:00:13]}  Rc4 {[%clk 0:00:19]} 32. h3 {[%clk 0:00:14]}  Kf7 {[%clk 0:00:17]} 33. Bf3 {[%clk 0:00:14]}  Ke6 {[%clk 0:00:18]} 34. Kh2 {[%clk 0:00:15]}  h5 {[%clk 0:00:17]} 35. Re3 {[%clk 0:00:15]}  Kf5 {[%clk 0:00:18]} 36. d5 {[%clk 0:00:15]}  Rc2 {[%clk 0:00:17]} 37. Be4+ {[%clk 0:00:13]}  Kf4 {[%clk 0:00:17]} 38. Bxc2 {[%clk 0:00:13]}  Kxe3 {[%clk 0:00:17]} 39. e6 {[%clk 0:00:14]}  Rxd5 {[%clk 0:00:17]} 40. e7 {[%clk 0:00:14]}  Re5 {[%clk 0:00:17]} 41. Bxe5 {[%clk 0:00:14]} 1-0


[Site "https://www.chess.com"]

[Event "Titled Tuesday Blitz January 25 2022"]
[White "Idrisov, Ildar F"]
[Black "Daneshvar, Bardiya"]
[WhiteFideId "4151020"]
[BlackFideId "12576468"]
[WhiteElo "2209"]
[BlackElo "2295"]
[Result "1-0"]
[Round "01"]
[TimeControl "180+1"]
[Date "2022.01.26"]
[WhiteClock "0:00:01"]
[BlackClock "0:00:08"]

1. Nf3 {[%clk 0:02:59]}  d5 {[%clk 0:02:56]} 2. b3 {[%clk 0:02:59]}  c6 {[%clk 0:02:56]} 3. Bb2 {[%clk 0:02:59]}  Bf5 {[%clk 0:02:56]} 4. e3 {[%clk 0:02:59]}  e6 {[%clk 0:02:55]} 5. d4 {[%clk 0:02:59]}  Nf6 {[%clk 0:02:54]} 6. Bd3 {[%clk 0:02:59]}  Bxd3 {[%clk 0:02:53]} 7. Qxd3 {[%clk 0:02:55]}  Nbd7 {[%clk 0:02:53]} 8. Nbd2 {[%clk 0:02:54]}  a5 {[%clk 0:02:48]} 9. a3 {[%clk 0:02:53]}  a4 {[%clk 0:02:46]} 10. b4 {[%clk 0:02:53]}  b5 {[%clk 0:02:47]} 11. O-O {[%clk 0:02:51]}  Bd6 {[%clk 0:02:37]} 12. Ne5 {[%clk 0:02:50]}  Qc7 {[%clk 0:02:34]} 13. f4 {[%clk 0:02:49]}  Nb6 {[%clk 0:02:30]} 14. Rae1 {[%clk 0:02:39]}  Nc4 {[%clk 0:02:22]} 15. Bc1 {[%clk 0:02:34]}  Nxd2 {[%clk 0:02:21]} 16. Bxd2 {[%clk 0:02:33]}  Bxe5 {[%clk 0:02:20]} 17. dxe5 {[%clk 0:02:29]}  Ne4 {[%clk 0:02:19]} 18. Bc3 {[%clk 0:02:23]}  O-O-O {[%clk 0:02:05]} 19. Bd4 {[%clk 0:02:22]}  Qd7 {[%clk 0:02:04]} 20. Bb6 {[%clk 0:02:11]}  Rde8 {[%clk 0:02:01]} 21. Qd4 {[%clk 0:02:11]}  Kb7 {[%clk 0:01:57]} 22. Ba5 {[%clk 0:02:10]}  Ka8 {[%clk 0:01:53]} 23. Qb6 {[%clk 0:01:53]}  Qb7 {[%clk 0:01:51]} 24. Qd4 {[%clk 0:01:50]}  Rb8 {[%clk 0:01:43]} 25. f5 {[%clk 0:01:43]}  Rhf8 {[%clk 0:01:37]} 26. Rf4 {[%clk 0:01:36]}  Qa7 {[%clk 0:01:34]} 27. Rxe4 {[%clk 0:01:30]}  dxe4 {[%clk 0:01:33]} 28. Qxe4 {[%clk 0:01:30]}  Kb7 {[%clk 0:01:32]} 29. Rd1 {[%clk 0:01:27]}  Qa8 {[%clk 0:01:29]} 30. Rd6 {[%clk 0:01:19]}  Rfc8 {[%clk 0:01:26]} 31. Rd7+ {[%clk 0:01:10]}  Ka6 {[%clk 0:01:24]} 32. Rxf7 {[%clk 0:01:10]}  c5 {[%clk 0:01:20]} 33. Qxa8+ {[%clk 0:01:04]}  Rxa8 {[%clk 0:01:21]} 34. fxe6 {[%clk 0:01:03]}  Rc6 {[%clk 0:01:09]} 35. e7 {[%clk 0:00:53]}  Re8 {[%clk 0:01:07]} 36. Rxg7 {[%clk 0:00:49]}  Re6 {[%clk 0:01:04]} 37. Rxh7 {[%clk 0:00:41]}  R8xe7 {[%clk 0:00:59]} 38. Rxe7 {[%clk 0:00:35]}  Rxe7 {[%clk 0:00:59]} 39. Kf2 {[%clk 0:00:28]}  Rxe5 {[%clk 0:00:55]} 40. g4 {[%clk 0:00:22]}  Re4 {[%clk 0:00:16]} 41. Kf3 {[%clk 0:00:21]}  Rc4 {[%clk 0:00:08]} 42. g5 {[%clk 0:00:20]}  cxb4 {[%clk 0:00:08]} 43. Bxb4 {[%clk 0:00:10]}  Rxb4 {[%clk 0:00:07]} 44. axb4 {[%clk 0:00:10]}  a3 {[%clk 0:00:08]} 45. g6 {[%clk 0:00:10]}  a2 {[%clk 0:00:09]} 46. g7 {[%clk 0:00:10]}  a1=Q {[%clk 0:00:10]} 47. g8=Q {[%clk 0:00:10]}  Qf1+ {[%clk 0:00:11]} 48. Ke4 {[%clk 0:00:09]}  Qh1+ {[%clk 0:00:11]} 49. Kd4 {[%clk 0:00:07]}  Qxh2 {[%clk 0:00:11]} 50. Qe6+ {[%clk 0:00:05]}  Kb7 {[%clk 0:00:11]} 51. Qd7+ {[%clk 0:00:05]}  Kb6 {[%clk 0:00:12]} 52. Qe6+ {[%clk 0:00:03]}  Kb7 {[%clk 0:00:12]} 53. Qd5+ {[%clk 0:00:03]}  Ka6 {[%clk 0:00:07]} 54. Qc6+ {[%clk 0:00:03]}  Ka7 {[%clk 0:00:07]} 55. Qc5+ {[%clk 0:00:02]}  Ka6 {[%clk 0:00:07]} 56. Qc6+ {[%clk 0:00:02]}  Ka7 {[%clk 0:00:08]} 57. Qxb5 {[%clk 0:00:01]}  Qxc2 {[%clk 0:00:08]} 58. Qc5+ {[%clk 0:00:01]} 1-0


[Site "https://www.chess.com"]

[Event "Titled Tuesday Blitz January 25 2022"]
[White "Jeet, Jain"]
[Black "Izoria, Zviad"]
[WhiteFideId "5073022"]
[BlackFideId "13601733"]
[WhiteElo "2085"]
[BlackElo "2626"]
[Result "0-1"]
[Round "01"]
[TimeControl "180+1"]
[Date "2022.01.26"]
[WhiteClock "0:01:08"]
[BlackClock "0:01:00"]

1. e4 {[%clk 0:02:58]}  c6 {[%clk 0:02:58]} 2. d4 {[%clk 0:02:59]}  d5 {[%clk 0:02:57]} 3. e5 {[%clk 0:02:59]}  Bf5 {[%clk 0:02:57]} 4. h4 {[%clk 0:03:00]}  Qc7 {[%clk 0:02:52]} 5. Nc3 {[%clk 0:02:58]}  h5 {[%clk 0:02:45]} 6. Bd3 {[%clk 0:02:57]}  Bxd3 {[%clk 0:02:45]} 7. Qxd3 {[%clk 0:02:58]}  e6 {[%clk 0:02:45]} 8. f4 {[%clk 0:02:58]}  Nh6 {[%clk 0:02:43]} 9. Be3 {[%clk 0:02:54]}  Nf5 {[%clk 0:02:42]} 10. Bf2 {[%clk 0:02:54]}  c5 {[%clk 0:02:40]} 11. Nf3 {[%clk 0:02:54]}  cxd4 {[%clk 0:02:38]} 12. Nxd4 {[%clk 0:02:50]}  Nxd4 {[%clk 0:02:38]} 13. Bxd4 {[%clk 0:02:48]}  Nc6 {[%clk 0:02:36]} 14. Ne2 {[%clk 0:02:44]}  Nb4 {[%clk 0:02:32]} 15. Qb5+ {[%clk 0:02:45]}  Qc6 {[%clk 0:02:32]} 16. Qxc6+ {[%clk 0:02:44]}  bxc6 {[%clk 0:02:33]} 17. Kd2 {[%clk 0:02:35]}  c5 {[%clk 0:02:32]} 18. Bf2 {[%clk 0:02:35]}  g6 {[%clk 0:02:31]} 19. c3 {[%clk 0:02:35]}  Nc6 {[%clk 0:02:31]} 20. a3 {[%clk 0:02:35]}  a5 {[%clk 0:02:04]} 21. Rhb1 {[%clk 0:02:31]}  a4 {[%clk 0:02:03]} 22. Nc1 {[%clk 0:02:29]}  Be7 {[%clk 0:01:49]} 23. b4 {[%clk 0:02:21]}  axb3 {[%clk 0:01:49]} 24. Nxb3 {[%clk 0:02:21]}  c4 {[%clk 0:01:39]} 25. Nd4 {[%clk 0:02:21]}  Nxd4 {[%clk 0:01:38]} 26. Bxd4 {[%clk 0:02:19]}  Bxh4 {[%clk 0:01:37]} 27. a4 {[%clk 0:02:15]}  Bd8 {[%clk 0:01:35]} 28. Bc5 {[%clk 0:02:10]}  Kd7 {[%clk 0:01:32]} 29. Rb5 {[%clk 0:02:09]}  Ra5 {[%clk 0:01:25]} 30. Bd4 {[%clk 0:02:01]}  Bc7 {[%clk 0:01:19]} 31. Rxa5 {[%clk 0:01:38]}  Bxa5 {[%clk 0:01:20]} 32. Rb1 {[%clk 0:01:39]}  Kc6 {[%clk 0:01:19]} 33. Rb5 {[%clk 0:01:38]}  Ra8 {[%clk 0:01:17]} 34. Rc5+ {[%clk 0:01:38]}  Kd7 {[%clk 0:01:13]} 35. Rb5 {[%clk 0:01:38]}  Bc7 {[%clk 0:01:09]} 36. Rb4 {[%clk 0:01:32]}  Kc6 {[%clk 0:01:09]} 37. Kc2 {[%clk 0:01:19]}  Rg8 {[%clk 0:01:05]} 38. Rb5 {[%clk 0:01:13]}  g5 {[%clk 0:01:04]} 39. g3 {[%clk 0:01:12]}  gxf4 {[%clk 0:01:03]} 40. gxf4 {[%clk 0:01:12]}  h4 {[%clk 0:01:03]} 41. Rb1 {[%clk 0:01:08]}  Rg2+ {[%clk 0:01:00]} 42. Kc1 {[%clk 0:01:08]}  h3 {[%clk 0:01:00]} 0-1


[Site "https://www.chess.com"]

[Event "Titled Tuesday Blitz January 25 2022"]
[White "Karas, Marek"]
[Black "Demchenko, Anton"]
[WhiteFideId "14928558"]
[BlackFideId "4160258"]
[WhiteElo "2270"]
[BlackElo "2539"]
[Result "0-1"]
[Round "01"]
[TimeControl "180+1"]
[Date "2022.01.26"]
[WhiteClock "0:00:09"]
[BlackClock "0:00:36"]

1. d4 {[%clk 0:02:59]}  Nf6 {[%clk 0:02:57]} 2. Nf3 {[%clk 0:02:59]}  g6 {[%clk 0:02:57]} 3. c4 {[%clk 0:02:55]}  Bg7 {[%clk 0:02:56]} 4. Nc3 {[%clk 0:02:56]}  O-O {[%clk 0:02:56]} 5. Bg5 {[%clk 0:02:56]}  c5 {[%clk 0:02:50]} 6. e3 {[%clk 0:02:55]}  cxd4 {[%clk 0:02:47]} 7. exd4 {[%clk 0:02:56]}  d5 {[%clk 0:02:47]} 8. Bxf6 {[%clk 0:02:45]}  exf6 {[%clk 0:02:40]} 9. Nxd5 {[%clk 0:02:37]}  Bg4 {[%clk 0:02:39]} 10. Be2 {[%clk 0:02:34]}  Nc6 {[%clk 0:02:37]} 11. O-O {[%clk 0:02:30]}  f5 {[%clk 0:02:36]} 12. Ne3 {[%clk 0:02:28]}  Bxf3 {[%clk 0:02:36]} 13. Bxf3 {[%clk 0:02:29]}  Nxd4 {[%clk 0:02:34]} 14. Bd5 {[%clk 0:02:11]}  Rb8 {[%clk 0:02:31]} 15. Rb1 {[%clk 0:02:01]}  b5 {[%clk 0:02:30]} 16. b3 {[%clk 0:01:58]}  Qa5 {[%clk 0:02:22]} 17. Nc2 {[%clk 0:01:51]}  Ne6 {[%clk 0:02:14]} 18. Bxe6 {[%clk 0:01:37]}  fxe6 {[%clk 0:02:14]} 19. Qd7 {[%clk 0:01:29]}  Rfe8 {[%clk 0:01:58]} 20. cxb5 {[%clk 0:01:21]}  Qxb5 {[%clk 0:01:28]} 21. Qxb5 {[%clk 0:01:21]}  Rxb5 {[%clk 0:01:29]} 22. Ne3 {[%clk 0:01:21]}  Bd4 {[%clk 0:01:12]} 23. Nc4 {[%clk 0:01:20]}  Rd5 {[%clk 0:01:09]} 24. Rfe1 {[%clk 0:01:12]}  Kf7 {[%clk 0:01:05]} 25. Re2 {[%clk 0:01:08]}  e5 {[%clk 0:01:03]} 26. g3 {[%clk 0:01:03]}  Red8 {[%clk 0:00:56]} 27. Kg2 {[%clk 0:01:01]}  e4 {[%clk 0:00:55]} 28. Rd1 {[%clk 0:01:01]}  Bc5 {[%clk 0:00:50]} 29. Red2 {[%clk 0:00:54]}  Rxd2 {[%clk 0:00:49]} 30. Rxd2 {[%clk 0:00:54]}  Rxd2 {[%clk 0:00:47]} 31. Nxd2 {[%clk 0:00:55]}  Ke6 {[%clk 0:00:48]} 32. Kf1 {[%clk 0:00:39]}  Kd5 {[%clk 0:00:48]} 33. Ke2 {[%clk 0:00:39]}  Kd4 {[%clk 0:00:49]} 34. Nb1 {[%clk 0:00:31]}  g5 {[%clk 0:00:46]} 35. a3 {[%clk 0:00:24]}  a5 {[%clk 0:00:43]} 36. b4 {[%clk 0:00:22]}  axb4 {[%clk 0:00:44]} 37. axb4 {[%clk 0:00:23]}  Bxb4 {[%clk 0:00:44]} 38. h3 {[%clk 0:00:17]}  h6 {[%clk 0:00:42]} 39. Nd2 {[%clk 0:00:13]}  Bxd2 {[%clk 0:00:42]} 40. Kxd2 {[%clk 0:00:14]}  f4 {[%clk 0:00:42]} 41. Ke2 {[%clk 0:00:11]}  Kc3 {[%clk 0:00:39]} 42. Ke1 {[%clk 0:00:09]}  Kd3 {[%clk 0:00:38]} 43. Kd1 {[%clk 0:00:09]}  e3 {[%clk 0:00:36]} 44. fxe3 {[%clk 0:00:09]}  fxg3 {[%clk 0:00:36]} 0-1


[Site "https://www.chess.com"]

[Event "Titled Tuesday Blitz January 25 2022"]
[White "Kashefi, Amir Hosein"]
[Black "Chigaev, Maksim"]
[WhiteFideId "12557935"]
[BlackFideId "4108116"]
[WhiteElo "2098"]
[BlackElo "2502"]
[Result "1-0"]
[Round "01"]
[TimeControl "180+1"]
[Date "2022.01.26"]
[WhiteClock "0:00:05"]
[BlackClock "0:02:37"]

1. d4 {[%clk 0:02:42]}  Nf6 {[%clk 0:02:59]} 2. Nf3 {[%clk 0:02:39]}  g6 {[%clk 0:02:59]} 3. g3 {[%clk 0:02:39]}  Bg7 {[%clk 0:02:59]} 4. Bg2 {[%clk 0:02:40]}  O-O {[%clk 0:03:00]} 5. O-O {[%clk 0:02:40]}  d6 {[%clk 0:03:01]} 6. b3 {[%clk 0:02:40]}  e5 {[%clk 0:03:02]} 7. Bb2 {[%clk 0:02:41]}  e4 {[%clk 0:03:02]} 8. Ne1 {[%clk 0:02:41]}  e3 {[%clk 0:03:02]} 9. f3 {[%clk 0:02:36]}  Re8 {[%clk 0:03:01]} 10. c4 {[%clk 0:02:36]}  h5 {[%clk 0:03:01]} 11. Nd3 {[%clk 0:02:35]}  Nc6 {[%clk 0:03:01]} 12. d5 {[%clk 0:02:33]}  Ne7 {[%clk 0:03:01]} 13. Qc1 {[%clk 0:02:32]}  Nf5 {[%clk 0:03:01]} 14. Nc3 {[%clk 0:02:32]}  a5 {[%clk 0:03:00]} 15. Ne4 {[%clk 0:02:24]}  a4 {[%clk 0:03:00]} 16. Qc2 {[%clk 0:02:09]}  h4 {[%clk 0:02:54]} 17. g4 {[%clk 0:02:01]}  Nxe4 {[%clk 0:02:53]} 18. fxe4 {[%clk 0:02:02]}  Nd4 {[%clk 0:02:53]} 19. Bxd4 {[%clk 0:01:28]}  Bxd4 {[%clk 0:02:54]} 20. h3 {[%clk 0:01:28]}  axb3 {[%clk 0:02:53]} 21. Qxb3 {[%clk 0:01:26]}  Bxa1 {[%clk 0:02:53]} 22. Rxa1 {[%clk 0:01:27]}  b6 {[%clk 0:02:54]} 23. e5 {[%clk 0:01:22]}  dxe5 {[%clk 0:02:53]} 24. d6 {[%clk 0:01:22]}  e4 {[%clk 0:02:53]} 25. dxc7 {[%clk 0:01:11]}  Qxc7 {[%clk 0:02:54]} 26. Nb4 {[%clk 0:01:10]}  Qg3 {[%clk 0:02:54]} 27. Nd5 {[%clk 0:01:08]}  Bxg4 {[%clk 0:02:55]} 28. Nf6+ {[%clk 0:00:57]}  Kf8 {[%clk 0:02:54]} 29. Nxg4 {[%clk 0:00:53]}  f5 {[%clk 0:02:53]} 30. Rf1 {[%clk 0:00:51]}  Qd6 {[%clk 0:02:48]} 31. Nxe3 {[%clk 0:00:33]}  Ra3 {[%clk 0:02:47]} 32. Nxf5 {[%clk 0:00:13]}  Qc5+ {[%clk 0:02:45]} 33. Nd4+ {[%clk 0:00:11]}  Ke7 {[%clk 0:02:46]} 34. Qb2 {[%clk 0:00:10]}  Rd8 {[%clk 0:02:47]} 35. e3 {[%clk 0:00:10]}  Rxe3 {[%clk 0:02:47]} 36. Nc6+ {[%clk 0:00:04]}  Kd6 {[%clk 0:02:46]} 37. Qf6+ {[%clk 0:00:03]}  Kc7 {[%clk 0:02:46]} 38. Qxd8+ {[%clk 0:00:03]}  Kb7 {[%clk 0:02:45]} 39. Qb8+ {[%clk 0:00:03]}  Kxc6 {[%clk 0:02:45]} 40. Qc8+ {[%clk 0:00:04]}  Kd6 {[%clk 0:02:45]} 41. Qxc5+ {[%clk 0:00:05]}  Kxc5 {[%clk 0:02:45]} 42. Rf4 {[%clk 0:00:05]}  Rg3 {[%clk 0:02:45]} 43. Rxh4 {[%clk 0:00:05]}  e3 {[%clk 0:02:35]} 44. Kf1 {[%clk 0:00:05]}  e2+ {[%clk 0:02:35]} 45. Kxe2 {[%clk 0:00:04]}  Rxg2+ {[%clk 0:02:36]} 46. Kd3 {[%clk 0:00:05]}  Rxa2 {[%clk 0:02:37]} 47. Rg4 {[%clk 0:00:05]} 1-0


[Site "https://www.chess.com"]

[Event "Titled Tuesday Blitz January 25 2022"]
[White "Klimkowski, Jan"]
[Black "Kahlert, Thomas"]
[WhiteFideId "21856222"]
[BlackFideId "4625242"]
[WhiteElo "2172"]
[BlackElo "2228"]
[Result "1-0"]
[Round "01"]
[TimeControl "180+1"]
[Date "2022.01.26"]
[WhiteClock "0:01:50"]
[BlackClock "0:01:30"]

1. e4 {[%clk 0:02:58]}  e5 {[%clk 0:02:58]} 2. Nf3 {[%clk 0:02:58]}  Nc6 {[%clk 0:02:57]} 3. Bb5 {[%clk 0:02:58]}  a6 {[%clk 0:02:57]} 4. Ba4 {[%clk 0:02:58]}  Nf6 {[%clk 0:02:56]} 5. O-O {[%clk 0:02:58]}  Be7 {[%clk 0:02:56]} 6. Re1 {[%clk 0:02:58]}  b5 {[%clk 0:02:56]} 7. Bb3 {[%clk 0:02:58]}  d6 {[%clk 0:02:55]} 8. c3 {[%clk 0:02:57]}  O-O {[%clk 0:02:55]} 9. h3 {[%clk 0:02:57]}  Na5 {[%clk 0:02:55]} 10. Bc2 {[%clk 0:02:57]}  c5 {[%clk 0:02:55]} 11. d4 {[%clk 0:02:58]}  Qc7 {[%clk 0:02:56]} 12. Nbd2 {[%clk 0:02:58]}  cxd4 {[%clk 0:02:55]} 13. cxd4 {[%clk 0:02:59]}  Bd7 {[%clk 0:02:56]} 14. b3 {[%clk 0:02:54]}  Rac8 {[%clk 0:02:54]} 15. b4 {[%clk 0:02:08]}  Qxc2 {[%clk 0:02:51]} 16. bxa5 {[%clk 0:02:09]}  Bd8 {[%clk 0:02:36]} 17. Ba3 {[%clk 0:02:07]}  Bxa5 {[%clk 0:02:33]} 18. Bxd6 {[%clk 0:02:05]}  Rfd8 {[%clk 0:02:26]} 19. Bxe5 {[%clk 0:01:57]}  Ne8 {[%clk 0:02:06]} 20. Rc1 {[%clk 0:01:51]}  Qxa2 {[%clk 0:01:30]} 21. Ra1 {[%clk 0:01:50]} 1-0


[Site "https://www.chess.com"]

[Event "Titled Tuesday Blitz January 25 2022"]
[White "Krzywda, Andrzej"]
[Black "Holt, Conrad"]
[WhiteFideId "1114565"]
[BlackFideId "2034387"]
[WhiteElo "2098"]
[BlackElo "2586"]
[Result "1-0"]
[Round "01"]
[TimeControl "180+1"]
[Date "2022.01.26"]
[WhiteClock "0:00:03"]
[BlackClock "0:00:03"]

1. d4 {[%clk 0:02:59]}  d5 {[%clk 0:03:00]} 2. Nf3 {[%clk 0:02:59]}  Nf6 {[%clk 0:02:54]} 3. g3 {[%clk 0:02:59]}  Bf5 {[%clk 0:02:53]} 4. Bg2 {[%clk 0:02:58]}  e6 {[%clk 0:02:53]} 5. c4 {[%clk 0:02:58]}  c6 {[%clk 0:02:51]} 6. Nc3 {[%clk 0:02:54]}  Nbd7 {[%clk 0:02:34]} 7. O-O {[%clk 0:02:54]}  dxc4 {[%clk 0:02:24]} 8. Nh4 {[%clk 0:02:34]}  Bg4 {[%clk 0:02:24]} 9. h3 {[%clk 0:02:32]}  Bh5 {[%clk 0:02:24]} 10. Qc2 {[%clk 0:02:22]}  Nb6 {[%clk 0:02:10]} 11. Rd1 {[%clk 0:02:07]}  Nfd5 {[%clk 0:02:10]} 12. Ne4 {[%clk 0:01:56]}  Be7 {[%clk 0:02:06]} 13. Nf3 {[%clk 0:01:56]}  Nb4 {[%clk 0:02:00]} 14. Qd2 {[%clk 0:01:51]}  O-O {[%clk 0:01:59]} 15. Ne5 {[%clk 0:01:29]}  f6 {[%clk 0:01:53]} 16. Nf3 {[%clk 0:01:26]}  Bg6 {[%clk 0:01:45]} 17. Ne1 {[%clk 0:01:16]}  e5 {[%clk 0:01:34]} 18. dxe5 {[%clk 0:01:11]}  fxe5 {[%clk 0:01:28]} 19. a3 {[%clk 0:01:01]}  Qxd2 {[%clk 0:01:20]} 20. Bxd2 {[%clk 0:00:53]}  N4d5 {[%clk 0:01:20]} 21. Rac1 {[%clk 0:00:48]}  Na4 {[%clk 0:01:20]} 22. Rc2 {[%clk 0:00:35]}  Rad8 {[%clk 0:01:02]} 23. Bc1 {[%clk 0:00:35]}  b5 {[%clk 0:00:51]} 24. Rcd2 {[%clk 0:00:27]}  Bxe4 {[%clk 0:00:35]} 25. Bxe4 {[%clk 0:00:28]}  c3 {[%clk 0:00:35]} 26. Rc2 {[%clk 0:00:19]}  cxb2 {[%clk 0:00:31]} 27. Bxb2 {[%clk 0:00:15]}  Nxb2 {[%clk 0:00:30]} 28. Rxb2 {[%clk 0:00:16]}  Nc3 {[%clk 0:00:23]} 29. Rxd8 {[%clk 0:00:14]}  Rxd8 {[%clk 0:00:24]} 30. Bxc6 {[%clk 0:00:15]}  Rd1 {[%clk 0:00:23]} 31. Kf1 {[%clk 0:00:15]}  Bxa3 {[%clk 0:00:23]} 32. Rc2 {[%clk 0:00:07]}  b4 {[%clk 0:00:22]} 33. f3 {[%clk 0:00:03]}  Bc1 {[%clk 0:00:09]} 34. Kf2 {[%clk 0:00:03]}  Be3+ {[%clk 0:00:04]} 35. Kxe3 {[%clk 0:00:03]}  Rxe1 {[%clk 0:00:05]} 36. Rb2 {[%clk 0:00:02]}  a5 {[%clk 0:00:05]} 37. f4 {[%clk 0:00:02]}  exf4+ {[%clk 0:00:05]} 38. gxf4 {[%clk 0:00:03]}  Rd1 {[%clk 0:00:05]} 39. f5 {[%clk 0:00:03]}  Rd6 {[%clk 0:00:05]} 40. Bf3 {[%clk 0:00:02]}  Kf7 {[%clk 0:00:05]} 41. Kf4 {[%clk 0:00:02]}  Rb6 {[%clk 0:00:05]} 42. e4 {[%clk 0:00:02]}  a4 {[%clk 0:00:06]} 43. e5 {[%clk 0:00:03]}  a3 {[%clk 0:00:06]} 44. e6+ {[%clk 0:00:03]}  Kf8 {[%clk 0:00:06]} 45. Rd2 {[%clk 0:00:03]}  a2 {[%clk 0:00:06]} 46. Rd8+ {[%clk 0:00:03]}  Ke7 {[%clk 0:00:06]} 47. Rd7+ {[%clk 0:00:03]}  Ke8 {[%clk 0:00:06]} 48. Bh5+ {[%clk 0:00:04]}  g6 {[%clk 0:00:06]} 49. fxg6 {[%clk 0:00:04]}  hxg6 {[%clk 0:00:02]} 50. Bxg6+ {[%clk 0:00:04]}  Kf8 {[%clk 0:00:03]} 51. e7+ {[%clk 0:00:03]}  Kg7 {[%clk 0:00:03]} 52. e8=Q+ {[%clk 0:00:03]}  Kh6 {[%clk 0:00:03]} 53. Rh7# {[%clk 0:00:03]} 1-0


[Site "https://www.chess.com"]